[Event "Skanderborg Skakklub SmukSkak EMT"]
[Site "Niels Ebbesenskolen, Skanderborg, Denmark"]
[Date "2020.08.23"]
[Round "4.4"]
[White "Fogh, Jens Olaf Svanholm"]
[Black "Pedersen, Nicolai Vesterbæk"]
[Result "0-1"]
[TimeControl "90 min. til 40 træk, derefter 30 min. plus opsparet tid til resten af partiet med 30 sek. tillæg pr. træk fra træk ét."]
[BlackTitle "IM"]
[WhiteFideId "1409476"]
[BlackFideId "1402340"]
[WhiteElo "2117"]
[BlackElo "2384"]

1. d4 {[%clk 01:30:57]} {[%emt 00:00:02]} Nf6 {[%clk 01:30:53]} {[%emt
00:00:08]} 2. Nf3 {[%clk 01:31:06]} {[%emt 00:00:20]} e6 {[%clk 01:30:51]}
{[%emt 00:00:32]} 3. e3 {[%clk 01:30:18]} {[%emt 00:01:18]} b6 {[%clk
01:30:31]} {[%emt 00:00:51]} 4. Be2 {[%clk 01:29:58]} {[%emt 00:00:49]} Bb7
{[%clk 01:30:50]} {[%emt 00:00:11]} 5. O-O {[%clk 01:28:52]} {[%emt 00:01:36]}
d5 {[%clk 01:28:17]} {[%emt 00:03:03]} 6. c4 {[%clk 01:17:36]} {[%emt
00:11:46]} Bd6 {[%clk 01:27:39]} {[%emt 00:01:08]} 7. Nc3 {[%clk 01:17:16]}
{[%emt 00:00:51]} a6 {[%clk 01:26:44]} {[%emt 00:01:25]} 8. a3 {[%clk
01:05:06]} {[%emt 00:12:40]} Nbd7 {[%clk 01:18:54]} {[%emt 00:08:19]} 9. b4
{[%clk 01:03:07]} {[%emt 00:02:29]} dxc4 {[%clk 01:18:07]} {[%emt 00:01:17]} 10.
Bxc4 {[%clk 01:01:40]} {[%emt 00:01:57]} O-O {[%clk 01:18:20]} {[%emt
00:00:17]} 11. Re1 {[%clk 00:54:02]} {[%emt 00:08:07]} e5 {[%clk 01:11:05]}
{[%emt 00:07:46]} 12. e4 {[%clk 00:53:49]} {[%emt 00:00:42]} h6 {[%clk
01:08:00]} {[%emt 00:03:36]} 13. Ra2 {[%clk 00:45:30]} {[%emt 00:08:49]} b5
{[%clk 01:03:10]} {[%emt 00:05:20]} 14. Bb3 {[%clk 00:44:11]} {[%emt 00:01:48]}
Re8 {[%clk 01:01:54]} {[%emt 00:01:46]} 15. d5 {[%clk 00:36:08]} {[%emt
00:08:33]} Bf8 {[%clk 00:55:50]} {[%emt 00:06:35]} 16. Rc2 {[%clk 00:34:12]}
{[%emt 00:02:25]} Rc8 {[%clk 00:51:50]} {[%emt 00:04:30]} 17. Bb2 {[%clk
00:30:51]} {[%emt 00:03:50]} c5 {[%clk 00:50:25]} {[%emt 00:01:56]} 18. dxc6
{[%clk 00:30:59]} {[%emt 00:00:22]} Bxc6 {[%clk 00:50:35]} {[%emt 00:00:19]} 19.
Nd5 {[%clk 00:28:12]} {[%emt 00:03:17]} Bxd5 {[%clk 00:46:14]} {[%emt
00:04:52]} 20. Rxc8 {[%clk 00:24:11]} {[%emt 00:04:31]} Qxc8 {[%clk 00:46:07]}
{[%emt 00:00:37]} 21. exd5 {[%clk 00:24:29]} {[%emt 00:00:11]} Bd6 {[%clk
00:46:17]} {[%emt 00:00:20]} 22. Qb1 {[%clk 00:16:41]} {[%emt 00:08:18]} Qb8
{[%clk 00:46:25]} {[%emt 00:00:30]} 23. h3 {[%clk 00:14:36]} {[%emt 00:02:30]}
e4 {[%clk 00:44:36]} {[%emt 00:02:19]} 24. Nd2 {[%clk 00:10:44]} {[%emt
00:04:21]} Be5 {[%clk 00:44:18]} {[%emt 00:00:53]} 25. Bc1 {[%clk 00:10:02]}
{[%emt 00:01:15]} Bf4 {[%clk 00:43:39]} {[%emt 00:01:03]} 26. Nf1 {[%clk
00:07:30]} {[%emt 00:03:00]} Bxc1 {[%clk 00:43:50]} {[%emt 00:00:22]} 27. Rxc1
{[%clk 00:07:35]} {[%emt 00:00:23]} Ne5 {[%clk 00:43:09]} {[%emt 00:01:13]} 28.
Ng3 {[%clk 00:04:37]} {[%emt 00:03:25]} Nd3 {[%clk 00:42:38]} {[%emt 00:01:01]}
29. Rf1 {[%clk 00:04:13]} {[%emt 00:00:53]} Nxf2 {[%clk 00:42:05]} {[%emt
00:01:03]} 30. Kxf2 {[%clk 00:01:48]} {[%emt 00:02:55]} Qf4+ {[%clk 00:42:21]}
{[%emt 00:00:11]} 31. Kg1 {[%clk 00:01:44]} {[%emt 00:00:36]} Qxg3 {[%clk
00:42:46]} {[%emt 00:00:06]} 32. Qd1 {[%clk 00:00:47]} {[%emt 00:01:27]} Rc8
{[%clk 00:42:50]} {[%emt 00:00:26]} 33. d6 {[%clk 00:00:39]} {[%emt 00:00:38]}
Rd8 {[%clk 00:43:01]} {[%emt 00:00:18]} 34. Rxf6 {[%clk 00:00:31]} {[%emt
00:00:38]} gxf6 {[%clk 00:41:40]} {[%emt 00:01:51]} 35. Qd5 {[%clk 00:00:53]}
{[%emt 00:00:07]} Qg6 {[%clk 00:42:02]} {[%emt 00:00:07]} 36. Qc5 {[%clk
00:00:34]} {[%emt 00:00:50]} f5 {[%clk 00:41:56]} {[%emt 00:00:37]} 37. Qc7
{[%clk 00:00:57]} {[%emt 00:00:06]} Rf8 {[%clk 00:40:44]} {[%emt 00:01:41]} 38.
d7 {[%clk 00:01:08]} {[%emt 00:00:20]} Qf6 {[%clk 00:40:47]} {[%emt 00:00:28]}
39. Bxf7+ {[%clk 00:01:00]} {[%emt 00:00:38]} Qxf7 {[%clk 00:40:36]} {[%emt
00:00:41]} 40. d8=Q {[%clk 00:01:09]} {[%emt 00:00:21]} Rxd8 {[%clk 00:40:56]}
{[%emt 00:00:09]} 41. Qxd8+ {[%clk 00:01:32]} {[%emt 00:00:07]} Kg7 {[%clk
00:41:08]} {[%emt 00:00:18]} 42. Qd6 {[%clk 00:00:46]} {[%emt 00:01:14]} Qf6
{[%clk 00:34:41]} {[%emt 00:06:58]} 43. Qg3+ {[%clk 00:24:31]} {[%emt
00:06:46]} Kf7 {[%clk 01:04:17]} {[%emt 00:00:53]} 44. Qc7+ {[%clk 00:24:50]}
{[%emt 00:00:12]} Qe7 {[%clk 01:04:35]} {[%emt 00:00:13]} 45. Qf4 {[%clk
00:25:13]} {[%emt 00:00:06]} Qe6 {[%clk 01:03:36]} {[%emt 00:01:30]} 46. Qc7+
{[%clk 00:24:18]} {[%emt 00:01:25]} Kf6 {[%clk 01:03:19]} {[%emt 00:00:46]} 47.
Qc3+ {[%clk 00:23:32]} {[%emt 00:01:16]} Qe5 {[%clk 01:03:27]} {[%emt
00:00:23]} 48. Qc6+ {[%clk 00:23:40]} {[%emt 00:00:21]} Kg5 {[%clk 01:03:43]}
{[%emt 00:00:14]} 49. Qc8 {[%clk 00:19:06]} {[%emt 00:05:04]} e3 {[%clk
01:02:27]} {[%emt 00:01:47]} 50. Qg8+ {[%clk 00:19:14]} {[%emt 00:00:21]} Kf4
{[%clk 01:02:05]} {[%emt 00:00:53]} 51. Qg6 {[%clk 00:19:30]} {[%emt 00:00:14]}
Ke4 {[%clk 00:57:36]} {[%emt 00:04:58]} 52. Qc6+ {[%clk 00:18:38]} {[%emt
00:01:22]} Kd3 {[%clk 00:56:57]} {[%emt 00:01:08]} 53. Qd7+ {[%clk 00:16:11]}
{[%emt 00:02:59]} Kc2 {[%clk 00:56:43]} {[%emt 00:00:43]} 54. Qc6+ {[%clk
00:16:01]} {[%emt 00:00:41]} Kb2 {[%clk 00:56:18]} {[%emt 00:00:55]} 55. Qxh6
{[%clk 00:15:55]} {[%emt 00:00:36]} Qd4 {[%clk 00:54:29]} {[%emt 00:02:19]} 56.
Qe6 {[%clk 00:13:58]} {[%emt 00:02:26]} e2+ {[%clk 00:54:05]} {[%emt 00:00:55]}
57. Kh2 {[%clk 00:14:22]} {[%emt 00:00:06]} Qf4 {[%clk 00:54:22]} {[%emt
00:00:14]} 0-1

[Event "Skanderborg Skakklub SmukSkak EMT"]
[Site "Niels Ebbesenskolen, Skanderborg, Denmark"]
[Date "2020.08.23"]
[Round "4.5"]
[White "Andersen, Rune"]
[Black "Thøgersen, Rasmus"]
[Result "0-1"]
[TimeControl "90 min. til 40 træk, derefter 30 min. plus opsparet tid til resten af partiet med 30 sek. tillæg pr. træk fra træk ét."]
[WhiteFideId "1405683"]
[BlackFideId "1431412"]
[WhiteElo "2129"]
[BlackElo "2267"]

1. d4 {[%clk 01:30:56]} {[%emt 00:00:03]} Nf6 {[%clk 01:30:55]} {[%emt
00:00:06]} 2. c4 {[%clk 01:31:22]} {[%emt 00:00:05]} g6 {[%clk 01:31:20]}
{[%emt 00:00:05]} 3. Nc3 {[%clk 01:31:47]} {[%emt 00:00:05]} Bg7 {[%clk
01:31:46]} {[%emt 00:00:03]} 4. e4 {[%clk 01:32:08]} {[%emt 00:00:10]} d6
{[%clk 01:32:10]} {[%emt 00:00:06]} 5. Nge2 {[%clk 01:32:32]} {[%emt 00:00:05]}
O-O {[%clk 01:32:30]} {[%emt 00:00:11]} 6. Ng3 {[%clk 01:32:53]} {[%emt
00:00:09]} c5 {[%clk 01:32:17]} {[%emt 00:00:43]} 7. d5 {[%clk 01:33:17]}
{[%emt 00:00:06]} e6 {[%clk 01:32:43]} {[%emt 00:00:04]} 8. Be2 {[%clk
01:33:39]} {[%emt 00:00:09]} exd5 {[%clk 01:33:07]} {[%emt 00:00:06]} 9. exd5
{[%clk 01:34:02]} {[%emt 00:00:07]} Nbd7 {[%clk 01:31:49]} {[%emt 00:01:47]} 10.
O-O {[%clk 01:33:34]} {[%emt 00:00:59]} a6 {[%clk 01:31:14]} {[%emt 00:01:05]}
11. Bg5 {[%clk 01:24:36]} {[%emt 00:09:26]} h6 {[%clk 01:24:37]} {[%emt
00:07:09]} 12. Bf4 {[%clk 01:24:59]} {[%emt 00:00:07]} Ne8 {[%clk 01:21:22]}
{[%emt 00:03:45]} 13. Qd2 {[%clk 01:24:10]} {[%emt 00:01:18]} Kh7 {[%clk
01:18:02]} {[%emt 00:03:50]} 14. Be3 {[%clk 01:17:16]} {[%emt 00:07:24]} f5
{[%clk 01:15:27]} {[%emt 00:03:06]} 15. f4 {[%clk 01:17:15]} {[%emt 00:00:31]}
Nc7 {[%clk 01:12:41]} {[%emt 00:03:16]} 16. a4 {[%clk 01:10:28]} {[%emt
00:07:16]} Rb8 {[%clk 01:06:03]} {[%emt 00:07:08]} 17. Bd3 {[%clk 01:08:23]}
{[%emt 00:02:35]} Nf6 {[%clk 01:04:44]} {[%emt 00:01:49]} 18. h3 {[%clk
01:08:06]} {[%emt 00:00:48]} b5 {[%clk 00:59:50]} {[%emt 00:05:24]} 19. axb5
{[%clk 01:07:56]} {[%emt 00:00:40]} axb5 {[%clk 01:00:11]} {[%emt 00:00:09]} 20.
Nxb5 {[%clk 01:03:35]} {[%emt 00:04:51]} Nxb5 {[%clk 00:55:02]} {[%emt
00:05:38]} 21. cxb5 {[%clk 01:01:19]} {[%emt 00:02:47]} Nxd5 {[%clk 00:55:27]}
{[%emt 00:00:05]} 22. Bf2 {[%clk 01:01:12]} {[%emt 00:00:37]} Nc7 {[%clk
00:51:13]} {[%emt 00:04:44]} 23. Ra5 {[%clk 00:53:21]} {[%emt 00:08:21]} Bd7
{[%clk 00:47:49]} {[%emt 00:03:54]} 24. b4 {[%clk 00:52:38]} {[%emt 00:01:14]}
Nxb5 {[%clk 00:45:28]} {[%emt 00:02:51]} 25. Bxb5 {[%clk 00:44:09]} {[%emt
00:08:59]} Bxb5 {[%clk 00:44:33]} {[%emt 00:01:25]} 26. Re1 {[%clk 00:41:33]}
{[%emt 00:03:05]} cxb4 {[%clk 00:22:13]} {[%emt 00:23:00]} 27. Ra7 {[%clk
00:33:04]} {[%emt 00:08:54]} Bd7 {[%clk 00:20:58]} {[%emt 00:01:40]} 28. Qxd6
{[%clk 00:33:05]} {[%emt 00:00:30]} Rf7 {[%clk 00:20:43]} {[%emt 00:00:44]} 29.
Rd1 {[%clk 00:24:33]} {[%emt 00:09:01]} b3 {[%clk 00:18:08]} {[%emt 00:03:05]}
30. Qd5 {[%clk 00:20:19]} {[%emt 00:04:45]} Qe8 {[%clk 00:15:23]} {[%emt
00:03:15]} 31. Re1 {[%clk 00:14:00]} {[%emt 00:06:48]} b2 {[%clk 00:14:23]}
{[%emt 00:01:31]} 32. Rxe8 {[%clk 00:11:46]} {[%emt 00:02:44]} Bxe8 {[%clk
00:14:32]} {[%emt 00:00:20]} 33. Rxf7 {[%clk 00:09:39]} {[%emt 00:02:37]} b1=Q+
{[%clk 00:14:30]} {[%emt 00:00:32]} 34. Kh2 {[%clk 00:09:25]} {[%emt 00:00:43]}
Bxf7 {[%clk 00:14:45]} {[%emt 00:00:16]} 35. Qxf7 {[%clk 00:09:49]} {[%emt
00:00:06]} Rb7 {[%clk 00:14:57]} {[%emt 00:00:18]} 36. Qe6 {[%clk 00:08:55]}
{[%emt 00:01:24]} Qd3 {[%clk 00:14:10]} {[%emt 00:01:17]} 37. Bb6 {[%clk
00:05:15]} {[%emt 00:04:10]} Qa6 {[%clk 00:14:00]} {[%emt 00:00:40]} 0-1

[Event "Skanderborg Skakklub SmukSkak EMT"]
[Site "Niels Ebbesenskolen, Skanderborg, Denmark"]
[Date "2020.08.23"]
[Round "4.6"]
[White "Brondt, Nicolai Kvist"]
[Black "Hansen, Lars"]
[Result "0-1"]
[TimeControl "90 min. til 40 træk, derefter 30 min. plus opsparet tid til resten af partiet med 30 sek. tillæg pr. træk fra træk ét."]
[WhiteTitle "FM"]
[WhiteFideId "1413848"]
[BlackFideId "1402528"]
[WhiteElo "2244"]
[BlackElo "2223"]

1. d4 {[%clk 01:30:58]} {[%emt 00:00:01]} e6 {[%clk 01:18:29]} {[%emt
00:12:31]} 2. c4 {[%clk 01:30:05]} {[%emt 00:01:23]} b6 {[%clk 01:18:32]}
{[%emt 00:00:27]} 3. a3 {[%clk 01:30:28]} {[%emt 00:00:07]} Bb7 {[%clk
01:18:34]} {[%emt 00:00:28]} 4. Nc3 {[%clk 01:30:53]} {[%emt 00:00:05]} Nf6
{[%clk 01:18:56]} {[%emt 00:00:08]} 5. d5 {[%clk 01:31:12]} {[%emt 00:00:11]}
Bd6 {[%clk 01:14:51]} {[%emt 00:04:35]} 6. Nf3 {[%clk 01:31:26]} {[%emt
00:00:16]} O-O {[%clk 01:13:54]} {[%emt 00:01:28]} 7. g3 {[%clk 01:31:36]}
{[%emt 00:00:20]} exd5 {[%clk 01:13:22]} {[%emt 00:01:02]} 8. cxd5 {[%clk
01:31:29]} {[%emt 00:00:37]} Na6 {[%clk 01:10:42]} {[%emt 00:03:10]} 9. Bg2
{[%clk 01:31:20]} {[%emt 00:00:38]} Nc5 {[%clk 01:09:47]} {[%emt 00:01:26]} 10.
b4 {[%clk 01:23:19]} {[%emt 00:08:31]} Nce4 {[%clk 01:08:07]} {[%emt 00:02:09]}
11. Nxe4 {[%clk 01:20:23]} {[%emt 00:03:27]} Nxe4 {[%clk 01:08:32]} {[%emt
00:00:04]} 12. Bb2 {[%clk 01:19:43]} {[%emt 00:01:10]} Re8 {[%clk 01:07:08]}
{[%emt 00:01:54]} 13. O-O {[%clk 01:16:57]} {[%emt 00:03:17]} a5 {[%clk
00:53:32]} {[%emt 00:14:06]} 14. Qb3 {[%clk 01:10:58]} {[%emt 00:06:29]} axb4
{[%clk 00:47:34]} {[%emt 00:06:28]} 15. axb4 {[%clk 01:11:18]} {[%emt
00:00:09]} Qe7 {[%clk 00:47:32]} {[%emt 00:00:32]} 16. Rxa8 {[%clk 00:51:03]}
{[%emt 00:20:46]} Bxa8 {[%clk 00:43:17]} {[%emt 00:04:45]} 17. Ba3 {[%clk
00:47:26]} {[%emt 00:04:07]} Qf6 {[%clk 00:18:45]} {[%emt 00:25:00]} 18. e3
{[%clk 00:36:38]} {[%emt 00:11:21]} Qc3 {[%clk 00:14:57]} {[%emt 00:04:17]} 19.
Qa2 {[%clk 00:28:50]} {[%emt 00:08:21]} Bxd5 {[%clk 00:10:50]} {[%emt
00:04:39]} 20. Qxd5 {[%clk 00:29:12]} {[%emt 00:00:05]} Qxa3 {[%clk 00:11:12]}
{[%emt 00:00:07]} 21. b5 {[%clk 00:23:56]} {[%emt 00:05:47]} Qc5 {[%clk
00:08:21]} {[%emt 00:03:19]} 22. Qd3 {[%clk 00:23:14]} {[%emt 00:01:14]} Qc3
{[%clk 00:06:50]} {[%emt 00:01:59]} 23. Qd5 {[%clk 00:22:57]} {[%emt 00:00:49]}
Nf6 {[%clk 00:06:06]} {[%emt 00:01:14]} 24. Qf5 {[%clk 00:22:11]} {[%emt
00:01:14]} Bc5 {[%clk 00:04:49]} {[%emt 00:01:47]} 25. Qf4 {[%clk 00:16:09]}
{[%emt 00:06:33]} Rxe3 {[%clk 00:02:40]} {[%emt 00:02:36]} 26. Kh1 {[%clk
00:09:28]} {[%emt 00:07:14]} Re8 {[%clk 00:02:04]} {[%emt 00:01:07]} 27. Qxc7
{[%clk 00:08:30]} {[%emt 00:01:28]} h6 {[%clk 00:02:26]} {[%emt 00:00:08]} 28.
Nh4 {[%clk 00:05:53]} {[%emt 00:03:05]} Qd3 {[%clk 00:02:02]} {[%emt 00:00:55]}
29. Qf4 {[%clk 00:03:49]} {[%emt 00:02:34]} Ne4 {[%clk 00:00:58]} {[%emt
00:01:32]} 30. h3 {[%clk 00:00:36]} {[%emt 00:03:45]} g5 {[%clk 00:00:39]}
{[%emt 00:00:49]} 31. Qf5 {[%clk 00:00:31]} {[%emt 00:00:36]} gxh4 {[%clk
00:00:59]} {[%emt 00:00:10]} 32. Qg4+ {[%clk 00:00:43]} {[%emt 00:00:18]} Kf8
{[%clk 00:01:10]} {[%emt 00:00:19]} 33. Qxh4 {[%clk 00:01:01]} {[%emt
00:00:12]} Nxf2+ {[%clk 00:00:55]} {[%emt 00:00:46]} 34. Kh2 {[%clk 00:01:07]}
{[%emt 00:00:23]} Qg6 {[%clk 00:00:59]} {[%emt 00:00:25]} 35. Bd5 {[%clk
00:00:55]} {[%emt 00:00:43]} Qg5 {[%clk 00:00:38]} {[%emt 00:00:51]} 36. Qc4
{[%clk 00:00:47]} {[%emt 00:00:37]} Re3 {[%clk 00:00:36]} {[%emt 00:00:32]} 37.
Rg1 {[%clk 00:00:32]} {[%emt 00:00:47]} Re7 {[%clk 00:00:46]} {[%emt 00:00:18]}
38. Qc3 {[%clk 00:00:39]} {[%emt 00:00:24]} Ng4+ {[%clk 00:00:38]} {[%emt
00:00:36]} 39. hxg4 {[%clk 00:01:03]} {[%emt 00:00:07]} Bxg1+ {[%clk 00:01:03]}
{[%emt 00:00:06]} 40. Kh3 {[%clk 00:01:16]} {[%emt 00:00:17]} Qe5 {[%clk
00:01:15]} {[%emt 00:00:17]} 41. Qc1 {[%clk 00:00:34]} {[%emt 00:01:12]} Be3
{[%clk 00:01:28]} {[%emt 00:00:15]} 42. Qc4 {[%clk 00:30:07]} {[%emt 00:00:59]}
Bf2 {[%clk 00:31:24]} {[%emt 00:00:30]} 43. Qd3 {[%clk 00:29:15]} {[%emt
00:01:26]} Qe3 {[%clk 00:31:14]} {[%emt 00:00:37]} 0-1

[Event "Skanderborg Skakklub SmukSkak EMT"]
[Site "Niels Ebbesenskolen, Skanderborg, Denmark"]
[Date "2020.08.23"]
[Round "5.1"]
[White "Knudsen, Martin"]
[Black "Olsen, Michael R. W."]
[Result "1/2-1/2"]
[TimeControl "90 min. til 40 træk, derefter 30 min. plus opsparet tid til resten af partiet med 30 sek. tillæg pr. træk fra træk ét."]
[WhiteFideId "1406523"]
[BlackFideId "1440969"]
[WhiteElo "1990"]
[BlackElo "2104"]

1. d4 {[%clk 01:30:57]} {[%emt 00:00:03]} f5 {[%clk 01:29:25]} {[%emt
00:01:35]} 2. c4 {[%clk 01:31:09]} {[%emt 00:00:18]} Nf6 {[%clk 01:29:49]}
{[%emt 00:00:06]} 3. Nc3 {[%clk 01:31:05]} {[%emt 00:00:35]} e6 {[%clk
01:30:03]} {[%emt 00:00:15]} 4. Nf3 {[%clk 01:31:18]} {[%emt 00:00:17]} Be7
{[%clk 01:29:50]} {[%emt 00:00:42]} 5. d5 {[%clk 01:30:51]} {[%emt 00:00:58]}
d6 {[%clk 01:26:58]} {[%emt 00:03:22]} 6. dxe6 {[%clk 01:28:23]} {[%emt
00:02:58]} Bxe6 {[%clk 01:27:17]} {[%emt 00:00:10]} 7. Nd4 {[%clk 01:21:10]}
{[%emt 00:07:44]} Bd7 {[%clk 01:22:40]} {[%emt 00:05:07]} 8. e3 {[%clk
01:17:15]} {[%emt 00:04:25]} Nc6 {[%clk 01:21:05]} {[%emt 00:02:05]} 9. Bd3
{[%clk 01:16:08]} {[%emt 00:01:37]} g6 {[%clk 01:19:53]} {[%emt 00:01:41]} 10.
b3 {[%clk 01:13:42]} {[%emt 00:02:57]} Ne5 {[%clk 01:19:58]} {[%emt 00:00:26]}
11. Bc2 {[%clk 01:13:35]} {[%emt 00:00:36]} O-O {[%clk 01:10:02]} {[%emt
00:10:26]} 12. O-O {[%clk 01:13:41]} {[%emt 00:00:24]} c6 {[%clk 01:09:07]}
{[%emt 00:01:25]} 13. Bb2 {[%clk 01:10:49]} {[%emt 00:03:22]} Qb6 {[%clk
01:08:49]} {[%emt 00:00:43]} 14. Rb1 {[%clk 01:08:34]} {[%emt 00:02:49]} Rad8
{[%clk 01:09:03]} {[%emt 00:00:17]} 15. Nf3 {[%clk 01:02:55]} {[%emt 00:06:09]}
Be6 {[%clk 01:03:59]} {[%emt 00:05:34]} 16. Ng5 {[%clk 01:00:33]} {[%emt
00:02:52]} Bc8 {[%clk 01:03:40]} {[%emt 00:00:49]} 17. Qe2 {[%clk 01:00:12]}
{[%emt 00:00:51]} Nfg4 {[%clk 01:01:33]} {[%emt 00:02:37]} 18. Nf3 {[%clk
00:58:44]} {[%emt 00:01:57]} Bf6 {[%clk 01:01:41]} {[%emt 00:00:22]} 19. Nd2
{[%clk 00:53:38]} {[%emt 00:05:37]} Rde8 {[%clk 00:59:49]} {[%emt 00:02:22]} 20.
h3 {[%clk 00:52:58]} {[%emt 00:01:10]} Nh6 {[%clk 00:59:36]} {[%emt 00:00:43]}
21. Na4 {[%clk 00:48:47]} {[%emt 00:04:42]} Qc7 {[%clk 00:57:36]} {[%emt
00:02:29]} 22. Qd1 {[%clk 00:40:09]} {[%emt 00:09:08]} Qf7 {[%clk 00:51:21]}
{[%emt 00:06:41]} 23. Ba3 {[%clk 00:34:40]} {[%emt 00:06:04]} Be7 {[%clk
00:49:17]} {[%emt 00:02:33]} 24. Nf3 {[%clk 00:32:48]} {[%emt 00:02:21]} Qe6
{[%clk 00:47:14]} {[%emt 00:02:33]} 25. Nb2 {[%clk 00:31:44]} {[%emt 00:01:35]}
Nhf7 {[%clk 00:46:19]} {[%emt 00:01:25]} 26. Nd4 {[%clk 00:30:15]} {[%emt
00:01:59]} Qf6 {[%clk 00:46:29]} {[%emt 00:00:19]} 27. Ne2 {[%clk 00:26:17]}
{[%emt 00:04:29]} g5 {[%clk 00:46:11]} {[%emt 00:00:48]} 28. f4 {[%clk
00:25:26]} {[%emt 00:01:22]} Ng6 {[%clk 00:45:48]} {[%emt 00:00:53]} 29. Qd4
{[%clk 00:23:59]} {[%emt 00:01:57]} Qe6 {[%clk 00:38:22]} {[%emt 00:07:54]} 30.
Qd3 {[%clk 00:24:01]} {[%emt 00:00:29]} Bd8 {[%clk 00:33:34]} {[%emt 00:05:19]}
31. Nd1 {[%clk 00:21:59]} {[%emt 00:02:32]} gxf4 {[%clk 00:20:08]} {[%emt
00:13:55]} 32. Nxf4 {[%clk 00:21:05]} {[%emt 00:01:24]} Nxf4 {[%clk 00:20:25]}
{[%emt 00:00:14]} 33. exf4 {[%clk 00:20:47]} {[%emt 00:00:47]} Bf6 {[%clk
00:17:45]} {[%emt 00:03:10]} 34. Bb4 {[%clk 00:19:10]} {[%emt 00:02:08]} Qe2
{[%clk 00:16:20]} {[%emt 00:01:52]} 35. Re1 {[%clk 00:16:23]} {[%emt 00:03:19]}
Qxd3 {[%clk 00:15:54]} {[%emt 00:00:55]} 36. Bxd3 {[%clk 00:16:45]} {[%emt
00:00:10]} Bd4+ {[%clk 00:15:34]} {[%emt 00:00:50]} 37. Kf1 {[%clk 00:16:35]}
{[%emt 00:00:40]} Rxe1+ {[%clk 00:15:13]} {[%emt 00:00:50]} 38. Bxe1 {[%clk
00:16:36]} {[%emt 00:00:29]} Nd8 {[%clk 00:15:03]} {[%emt 00:00:40]} 39. Bf2
{[%clk 00:16:27]} {[%emt 00:00:39]} Bxf2 {[%clk 00:14:49]} {[%emt 00:00:44]} 40.
Kxf2 {[%clk 00:15:54]} {[%emt 00:01:04]} Ne6 {[%clk 00:15:11]} {[%emt
00:00:08]} 41. g3 {[%clk 00:15:01]} {[%emt 00:01:22]} Nc5 {[%clk 00:08:21]}
{[%emt 00:07:20]} 42. Bc2 {[%clk 00:15:00]} {[%emt 00:00:31]} a5 {[%clk
00:08:47]} {[%emt 00:00:05]} 43. Nc3 {[%clk 00:14:57]} {[%emt 00:00:32]} Rd8
{[%clk 00:08:24]} {[%emt 00:00:53]} 44. Rd1 {[%clk 00:14:53]} {[%emt 00:00:33]}
Kg7 {[%emt 00:00:54]} 45. a3 {[%clk 00:14:34]} {[%emt 00:00:24]} Be6 {[%clk
00:07:28]} {[%emt 00:01:28]} 46. Kf3 {[%emt 00:01:54]} h5 {[%clk 00:05:01]}
{[%emt 00:02:38]} 47. Re1 {[%clk 00:07:32]} {[%emt 00:06:27]} Kf6 {[%clk
00:04:59]} {[%emt 00:00:31]} 48. Rd1 {[%emt 00:01:19]} Rd7 {[%clk 00:04:19]}
{[%emt 00:00:03]} 49. Rd2 {[%emt 00:04:02]} Bf7 {[%clk 00:02:24]} {[%emt
00:01:25]} 50. Rd1 {[%clk 00:05:09]} {[%emt 00:00:39]} 1/2-1/2

[Event "Skanderborg Skakklub SmukSkak EMT"]
[Site "Niels Ebbesenskolen, Skanderborg, Denmark"]
[Date "2020.08.23"]
[Round "5.2"]
[White "Bønnelykke, Ole"]
[Black "Hansen, Morten Lyck"]
[Result "1-0"]
[TimeControl "90 min. til 40 træk, derefter 30 min. plus opsparet tid til resten af partiet med 30 sek. tillæg pr. træk fra træk ét."]
[WhiteFideId "1407287"]
[BlackFideId "1408437"]
[WhiteElo "2021"]
[BlackElo "1945"]

1. e4 {[%clk 01:30:49]} {[%emt 00:00:10]} c6 {[%clk 01:30:45]} {[%emt
00:00:16]} 2. d4 {[%clk 01:31:10]} {[%emt 00:00:08]} d5 {[%clk 01:31:12]}
{[%emt 00:00:04]} 3. e5 {[%clk 01:31:29]} {[%emt 00:00:11]} Bf5 {[%clk
01:31:37]} {[%emt 00:00:05]} 4. Nc3 {[%clk 01:31:50]} {[%emt 00:00:09]} e6
{[%clk 01:31:59]} {[%emt 00:00:09]} 5. g4 {[%clk 01:32:13]} {[%emt 00:00:06]}
Bg6 {[%clk 01:32:26]} {[%emt 00:00:03]} 6. Nge2 {[%clk 01:32:32]} {[%emt
00:00:11]} c5 {[%clk 01:32:23]} {[%emt 00:00:33]} 7. Be3 {[%clk 01:32:46]}
{[%emt 00:00:17]} Nc6 {[%clk 01:32:15]} {[%emt 00:00:37]} 8. dxc5 {[%clk
01:33:03]} {[%emt 00:00:12]} h5 {[%clk 01:27:10]} {[%emt 00:05:35]} 9. Nd4
{[%clk 01:25:47]} {[%emt 00:07:47]} Nxd4 {[%clk 01:25:09]} {[%emt 00:02:32]} 10.
Qxd4 {[%clk 01:25:17]} {[%emt 00:00:59]} Ne7 {[%clk 01:25:26]} {[%emt
00:00:13]} 11. Bb5+ {[%clk 01:22:06]} {[%emt 00:03:41]} Nc6 {[%clk 01:25:53]}
{[%emt 00:00:02]} 12. O-O-O {[%clk 01:17:02]} {[%emt 00:05:34]} hxg4 {[%clk
01:25:20]} {[%emt 00:01:04]} 13. Qxg4 {[%clk 01:11:42]} {[%emt 00:05:49]} Rh4
{[%clk 01:20:06]} {[%emt 00:05:42]} 14. Qg2 {[%clk 01:07:11]} {[%emt 00:05:04]}
Qa5 {[%clk 01:18:52]} {[%emt 00:01:44]} 15. Nxd5 {[%clk 00:58:45]} {[%emt
00:08:56]} exd5 {[%clk 01:18:01]} {[%emt 00:01:22]} 16. Qxd5 {[%clk 00:58:19]}
{[%emt 00:00:54]} Qc7 {[%clk 01:17:28]} {[%emt 00:01:03]} 17. e6 {[%clk
00:55:49]} {[%emt 00:03:00]} Rh5 {[%clk 01:12:10]} {[%emt 00:05:49]} 18. Qg2
{[%clk 00:52:26]} {[%emt 00:03:52]} Rc8 {[%clk 00:57:43]} {[%emt 00:14:58]} 19.
Rd7 {[%clk 00:50:22]} {[%emt 00:02:34]} Qe5 {[%clk 00:55:47]} {[%emt 00:02:26]}
20. Rxb7 {[%clk 00:47:04]} {[%emt 00:03:47]} Qe4 {[%clk 00:54:04]} {[%emt
00:02:14]} 21. exf7+ {[%clk 00:46:30]} {[%emt 00:01:03]} Kd8 {[%clk 00:54:10]}
{[%emt 00:00:24]} 22. Rd1+ {[%clk 00:45:56]} {[%emt 00:01:04]} 1-0